Cogmind - Beta 13 @@@ ROGUE MODE // 2024.05.02 @ 00:45:25 Player: lav Result: Destroyed self with Light Ion Engine chain reaction Performance ------------- Evolutions (1) 500 Regions Visited (3) 600 Robots Destroyed (42) 210 Value Destroyed (991) 991 Prototype IDs (0) 0 Alien Tech Used (0) 0 Bonus (0) 0 TOTAL SCORE: 2301 Bonus ------- None Cogmind --------- Core Integrity 0/400 Matter 300/300 Energy 105/125 System Corruption 0% Temperature Cool (12) Movement Walking (190) Ox1 Location -9/Mines Parts ------- > --- POWER (1) -------- Light Ion Engine > --- PROPULSION (4) --- Aluminum Leg > --- UTILITY (2) ------ Heat Sink Small Storage Unit > --- WEAPON (2) ------- EM Shotgun Datajack > --- INVENTORY (8) ---- Aluminum Leg Seismic Detector Light Armor Plating Hardened Light Armor Plating Peak State ------------ > --- POWER ------------ Ion Engine > --- PROPULSION ------- Aluminum Leg Aluminum Leg Aluminum Leg Aluminum Leg > --- UTILITY ---------- Small Storage Unit Sensor Array > --- WEAPON ----------- Heavy Assault Rifle Shotgun > --- INVENTORY -------- Ion Engine Aluminum Leg Heat Sink Seismic Detector Light Armor Plating EM Shotgun Beam Rifle Datajack [Rating: 12] Favorites ----------- Power Ion Engine Engine Ion Engine Propulsion Aluminum Leg Treads Light Treads Leg Aluminum Leg Utility Small Storage Unit Device Sensor Array Storage Small Storage Unit Weapon Medium Laser Energy Gun Medium Laser Energy Cannon Beam Cannon Ballistic Gun Heavy Assault Rifle Special Melee Weapon Datajack Build | -11 -10 -9 -9 ------- Run | Yrd Mat Mat Min Slots Evolved 2 | . . 2 . Power . | . . . . Propulsion 2 | . . 2 . Utility . | . . . . Weapon . | . . . . Parts Attached 53 | 8 15 30 . Power 6 | 1 3 2 . Engine 6 | 1 3 2 . Core . | . . . . Reactor . | . . . . Propulsion 16 | 3 3 10 . Treads 3 | 1 . 2 . Leg 13 | 2 3 8 . Wheel . | . . . . Hover . | . . . . Flight . | . . . . Utility 6 | 2 2 2 . Device 4 | 1 1 2 . Storage 2 | 1 1 . . Processor . | . . . . Hackware . | . . . . Protection . | . . . . Artifact . | . . . . Weapon 25 | 2 7 16 . Energy Gun 10 | 2 4 4 . Energy Cannon 2 | . 2 . . Ballistic Gun 11 | . 1 10 . Ballistic Cannon . | . . . . Launcher . | . . . . Special Weapon . | . . . . Impact Weapon . | . . . . Slashing Weapon . | . . . . Piercing Weapon . | . . . . Special Melee Weapon 2 | . . 2 . Unidentified Prototypes . | . . . . Parts Lost 17 | . 6 11 . Power 3 | . 1 2 . Propulsion 7 | . 2 5 . Utility 2 | . 1 1 . Weapon 5 | . 2 3 . Highest Loss Streak 8 | . 3 8 . To Critical Strikes . | . . . . Average Slot Usage (%) 93 | . 95 90 . Engine 11 | . 14 9 . Treads 1 | . . 2 . Leg 30 | . 26 34 . Device 10 | . 10 11 . Storage 13 | . 16 11 . Energy Gun 9 | . 14 5 . Energy Cannon 2 | . 4 . . Ballistic Gun 11 | . 7 14 . Naked Turns . | . . . . Heaviest Build 17 | 11 16 17 . Greatest Support 40 | 20 20 40 . Greatest Overweight (x) 3 | . 1 3 . Average Overweight (x) . | . . . . Largest Inventory Capacity 8 | 8 8 8 8 Average Capacity 7 | 7 8 8 8 Most Carried 8 | 8 8 8 4 Average Carried 6 | 4 6 7 4 Final Capacity 8 | 8 8 8 8 Final Carried 7 | 7 7 4 4 Class Distribution -------------------- 61% | Mutant 38% | Scavenger-Mutant Dominant Class ---------------- Mutant | -10/Materials Scavenger-Mutant | -9/Materials Mutant | -9/Mines Resources | -11 -10 -9 -9 ----------- Run | Yrd Mat Mat Min Matter Collected 1072 | 336 188 548 . Remotely . | . . . . Salvage Created 1293 | 101 343 828 21 Parts 88 | 11 22 55 . Haulers Intercepted . | . . . . Recyclers Shooed . | . . . . Parts Field Recycled . | . . . . Retrieved Matter . | . . . . Parts Self-Destructed . | . . . . Prevented . | . . . . Kills | -11 -10 -9 -9 ------- Run | Yrd Mat Mat Min Combat Hostiles Destroyed 32 | . 9 21 2 Guns 27 | . 6 21 . Cannons 3 | . 3 . . AOE 2 | . . . 2 Classes Destroyed 8 | 3 3 2 . Worker 3 | 1 . 2 . Tunneler 2 | 2 . . . Recycler 1 | 1 . . . Watcher 4 | . 2 2 . Swarmer 11 | . 3 6 2 Grunt 15 | . 6 9 . Brawler 1 | . . 1 . Sentry 5 | . . 5 . Best Kill Streak 6 | 2 3 6 2 Combat Bots Only 4 | . 2 4 2 Max Kills in Single Turn 2 | 1 1 2 2 Gunslinging 1 | . . 1 . Exploded 2 | . . . 2 Melee . | . . . . Uniques/NPCs Destroyed . | . . . . Combat | -11 -10 -9 -9 -------- Run | Yrd Mat Mat Min Hostile Shots Fired 294 | . 112 178 4 Missed 85 | . 36 47 2 Damage Taken 2457 | . 859 1540 58 Core 576 | . 170 358 48 Absorbed by Shields . | . . . . Core Remaining (%) 66 | 100 32 . . Volleys Fired 131 | 11 43 76 1 Largest 2 | 2 2 2 1 Hottest 110 | 80 110 79 45 Shots Fired 236 | 22 80 133 1 Gun 215 | 22 59 133 1 Cannon 21 | . 21 . . Launcher . | . . . . Special . | . . . . Kinetic 118 | . 16 102 . Thermal 101 | 22 64 15 . Explosive . | . . . . Electromagnetic 17 | . . 16 1 Robot Hit Streak 14 | 4 10 12 14 Robot Miss Streak 9 | 3 5 9 . Penetration Max . | . . . . Secondary Targets 3 | . 1 2 . Max Gunslinging Chain 1 | . 1 1 . Shots Hit Robots 135 | 11 44 79 1 Core Hits 64 | 5 16 41 2 Critical Kills . | . . . . Critical Parts Destroyed 2 | . . 2 . Critical Strikes 4 | . 1 3 . Burn 2 | . 1 1 . Destroy 2 | . . 2 . Melee Attacks 1 | . . 1 . Impact . | . . . . Slashing . | . . . . Piercing . | . . . . Sneak Attacks . | . . . . Combat Hostiles . | . . . . Follow-up Attacks . | . . . . Damage Inflicted 2050 | 124 624 1173 129 Guns 1666 | 124 359 1168 15 Cannons 265 | . 265 . . Explosions 114 | . . . 114 Melee . | . . . . Ramming 5 | . . 5 . Kinetic 976 | . 47 929 . Thermal 904 | 124 577 89 114 Explosive . | . . . . Electromagnetic 165 | . . 150 15 Impact . | . . . . Slashing . | . . . . Piercing . | . . . . Highest Corruption . | . . . . Average Corruption . | . . . . Corruption Purged . | . . . . Corruption Blocked . | . . . . Overload Shots . | . . . . Overflow Damage . | . . . . Projectiles . | . . . . Explosions . | . . . . Melee . | . . . . Knockbacks . | . . . . Impact . | . . . . Kinetic . | . . . . Secondary . | . . . . Self-Inflicted Damage 40 | . . . 40 Shots 1 | . . . 1 Rammed . | . . . . Targets Rammed 2 | . . 2 . Kicked 2 | . . 2 . Crushed . | . . . . Highest Temperature 369 | 108 369 66 . Average Temperature 76 | 39 97 15 . Received Heat Transfer 909 | . 429 480 . Effects 3 | . 3 . . Shutdowns 1 | . 1 . . Energy Bleed 1 | . 1 . . Damage (minor) 1 | . 1 . . Siege Activations . | . . . . Robots Corrupted . | . . . . Combat Hostiles . | . . . . Parts Fried 2 | . . 2 . Impact Corruptions . | . . . . Robots Melted . | . . . . Combat Hostiles . | . . . . Parts Melted 6 | . 6 . . Heat Transferred 2275 | 275 1554 296 150 Parts Sabotaged . | . . . . Parts Stolen . | . . . . Parts Stripped . | . . . . Power Chain Reactions 1 | . . . 1 Alert | -11 -10 -9 -9 ------- Run | Yrd Mat Mat Min Peak Influence 332 | 20 213 332 78 Initial 78 | . 13 8 78 Average 133 | 6 76 210 78 Maximum Alert Level 1 | . 1 1 . Low Security (%) 72 | 100 99 42 100 Level 1 27 | . . 57 . Level 2 . | . . . . Level 3 . | . . . . Level 4 . | . . . . Level 5 . | . . . . High Security . | . . . . Max Security . | . . . . Squads Dispatched 4 | . 2 2 . Investigation 2 | . 1 1 . Extermination . | . . . . Reinforcement 2 | . 1 1 . Assault . | . . . . Garrison . | . . . . Intercept . | . . . . Searches Triggered . | . . . . Construction Impeded . | . . . . Haulers Reinforced . | . . . . Active Scanning Responses . | . . . . Cargo Convoy Interrupts . | . . . . Stealth | -11 -10 -9 -9 --------- Run | Yrd Mat Mat Min Distress Signals 4 | . 3 1 . Communications Jammed . | . . . . Distress Signals . | . . . . Times Spotted 54 | . 19 31 4 Peak Tracking Total 6 | . 6 5 4 Tactical Retreats 2 | . 2 . . Traps | -11 -10 -9 -9 ------- Run | Yrd Mat Mat Min Traps Triggered 1 | . 1 . . Indirectly . | . . . . Trap Hack Attempts . | . . . . Triggered . | . . . . Disarmed . | . . . . Reprogrammed . | . . . . Reused . | . . . . Traps Extracted . | . . . . Installed . | . . . . Triggered . | . . . . Machines | -11 -10 -9 -9 ---------- Run | Yrd Mat Mat Min Machines Disabled 1 | . . 1 . Max in Single Turn 1 | . . 1 . Machines Repaired . | . . . . Machines Dismantled . | . . . . Machines Sabotaged . | . . . . Overloaded Fab Kills . | . . . . Hacking | -11 -10 -9 -9 --------- Run | Yrd Mat Mat Min Machines Accessed 7 | . 4 3 . Terminals 5 | . 3 2 . Fabricators . | . . . . Repair Stations . | . . . . Recycling Units 1 | . 1 . . Scanalyzers 1 | . . 1 . Garrison Access . | . . . . Total Hacks 27 | . 16 11 . Successful 13 | . 9 4 . Failed 14 | . 7 7 . Catastrophic . | . . . . Database Lockouts . | . . . . Manual . | . . . . Terminals 16 | . 9 7 . Fabricators . | . . . . Repair Stations . | . . . . Recycling Units 7 | . 7 . . Scanalyzers 4 | . . 4 . Garrison Access . | . . . . Terminal Hacks 7 | . 4 3 . Record 1 | . 1 . . Terminal Index 1 | . 1 . . Alert Level 1 | . 1 . . Security Status 1 | . . 1 . Investigation Status 1 | . . 1 . Zone Layout 2 | . 1 1 . Fabricator Hacks . | . . . . Repair Station Hacks . | . . . . Recycling Unit Hacks 5 | . 5 . . Recycle Component 2 | . 2 . . Process 1 | . 1 . . Report Inventory 1 | . 1 . . Retrieve Components 1 | . 1 . . Scanalyzer 1 | . . 1 . Insert Component 1 | . . 1 . Garrison Access Hacks . | . . . . Unauthorized Hacks . | . . . . Terminals . | . . . . Fabricators . | . . . . Repair Stations . | . . . . Recycling Units . | . . . . Scanalyzers . | . . . . Garrison Access . | . . . . Data Cores Recovered . | . . . . Used . | . . . . Hacking Detections 7 | . 4 3 . Full Trace Events 5 | . 2 3 . Feedback Events . | . . . . Feedback Blocked . | . . . . Robot Schematics Acquired . | . . . . Robots Built . | . . . . Authchips . | . . . . Time . | . . . . Total Robot Build Rating . | . . . . Part Schematics Acquired . | . . . . Parts Built . | . . . . Authchips . | . . . . Time . | . . . . Total Part Build Rating . | . . . . Parts Repaired . | . . . . Time . | . . . . Parts Recycled 2 | . 2 . . Recycled Matter 161 | . 161 . . Retrieved Matter . | . . . . Retrieved Components . | . . . . Parts Scanalyzed 1 | . . 1 . Part Schematics Acquired . | . . . . Parts Damaged . | . . . . Bothacking | -11 -10 -9 -9 ------------ Run | Yrd Mat Mat Min Used RIF Installer . | . . . . Robots Hacked 1 | . . 1 . Non-combat . | . . . . Combat 1 | . . 1 . Robot Hacks Applied 1 | . . 1 . parse_system 1 | . . 1 . Relay Couplers Released . | . . . . Fabnet Peak Effective % . | . . . . Robots Rewired . | . . . . Allies Hacked . | . . . . Hacks Repelled . | . . . . Allies | -11 -10 -9 -9 -------- Run | Yrd Mat Mat Min Total Allies . | . . . . Largest Group . | . . . . Highest-Rated Group . | . . . . Highest-Rated Ally . | . . . . Total Orders . | . . . . Ally Attacks . | . . . . Total Damage . | . . . . Kills . | . . . . Allies Corrupted . | . . . . Allies Melted . | . . . . Intel | -11 -10 -9 -9 ------- Run | Yrd Mat Mat Min Robot Analysis Total . | . . . . Derelict Logs Recovered . | . . . . Drone Launches . | . . . . Drone Recoveries . | . . . . Exploration | -11 -10 -9 -9 ------------- Run | Yrd Mat Mat Min Turns Passed 1874 | 152 839 882 1 Spaces Moved 1103 | 90 539 474 . Core 17 | 14 . 3 . Treads . | . . . . Legs 1086 | 76 539 471 . Wheels . | . . . . Hover . | . . . . Flight . | . . . . Fastest Speed 50 | 50 120 120 . Average Speed 122 | 109 126 121 . Slowest Speed 200 | 120 190 200 . Overloaded Moves . | . . . . Propulsion Burnouts . | . . . . Robots Hopped . | . . . . Cave-ins Triggered . | . . . . Exploration Rate (%) 30 | 4 78 39 2 Regions Visited 3 Branch Regions 1 Pre-discovered Areas . | . . . . Known Exits Taken . | . . . . Unknown Exits Taken 3 | 1 1 1 . Scrap Searched . | . . . . Spaces Dug . | . . . . Terrain Destroyed 6 | . . . 6 Melee . | . . . . Projectile . | . . . . AOE 6 | . . . 6 Terrain Rammed . | . . . . Walls Destroyed . | . . . . Machines Disabled . | . . . . Actions | -11 -10 -9 -9 --------- Run | Yrd Mat Mat Min Total 1394 | 121 619 652 2 Wait 51 | . 7 43 1 Move 1100 | 89 538 473 . Hop . | . . . . Pick Up 36 | 13 10 13 . Fast Attach 4 | 1 2 1 . Attach 23 | 6 6 11 . Detach . | . . . . Swap 26 | 1 7 18 . Drop 20 | . 6 14 . Fire 131 | 11 43 76 1 Melee 1 | . . 1 . Ram . | . . . . Kick 2 | . . 2 . Crush . | . . . . Escape Stasis . | . . . . Rewire . | . . . . Trap . | . . . . Miscellaneous . | . . . . Route ------- -11/Scrapyard -10/Materials (discovered 3 exits: *Mat x2 / [*Min]) -9/Materials (discovered 2 exits: [*Mat] / [*Min]) -9/Mines History --------- Turn | Location | Event 12 | -11/Scrapyard | Discovered new exit (range 14) 153 | -11/Scrapyard | Entered Materials 336 | -10/Materials | Build established: Mutant 432 | -10/Materials | Discovered new exit (range 13) 444 | -10/Materials | Lost 3 parts (1p1n1w) 545 | -10/Materials | Core integrity fell below 50% 611 | -10/Materials | Discovered new exit (range 15) 949 | -10/Materials | Discovered new exit (range 15) 992 | -10/Materials | Entered another Materials area 992 | -9/Materials | Evolved 2 slots: Propulsion x2 1366 | -9/Materials | Discovered new exit (range 15) 1405 | -9/Materials | Build established: Scavenger-Mutant 1614 | -9/Materials | Discovered new exit (range 14) 1817 | -9/Materials | Core integrity fell below 50% 1835 | -9/Materials | Core integrity fell below 20% 1871 | -9/Materials | Lost 8 parts (1p3n1u3w) 1874 | -9/Materials | Entered Mines 1875 | -9/Mines | Destroyed self with Light Ion Engine chain reaction Last Messages --------------- 01853_ Acquired Lgt. Ion Engine. 01855_ R-06 Scavenger collects Corrupted Heat Sink. 01855_ K-01 Serf collects debris. 01860_ R-06 Scavenger collects Corrupted Imp. Ion Engine. 01861_ Acquired 10 matter. 01861_ K-01 Serf collects debris. 01864_ R-06 Scavenger collects Corrupted Lgt. Treads. 01866_ K-01 Serf collects debris. LOCATION=UNKNOWN GOAL=ESCAPE Something is scanning the area. 01875_ C-30 ARC bursts open, deploying its payload. 01875_ S-10 Pest unfolds itself. 01875_ Chain reaction triggered in Lgt. Ion Engine. 01875_ S-10 Pest destroyed. Map ----- +----------------------------------------------------+ | ?????????????????????????????????????????????????? | | ?????????????????????????????????????????????????? | | ?????????????????????????????????????????????????? | | ?????????????????????????????????????????????????? | | ?????????????????????????????????????????????????? | | ?????????????????????????????????????????????????? | | ?????????????????????????????????????????????????? | | ?????????????????????????????????????????????????? | | ?????????????????????????????????????????????????? | | ?????????????????????????????????????????????????? | | ?????????????????????????????????????????????????? | | ?????????????????????????????????????????????????? | | ?????????????????????????????????????????????????? | | ?????????????????????????????????????????????????? | | ?????????????????????????????????????????????????? | | ?????????????????????????????????????????????????? | | ?????????????????????????????????????????????????? | | ?????????????????????????????????????????????????? | | ?????????????????????????????????????????????????? | | ????????????????????###??????????????????????????? | | ????????????????????? ??????????????????????????? | | ?????????????????????? ?????????????????????????? | | ???????????????????#### #####????????????????????? | | ???????????????????# #????????????????????? | | ???????????????????# """ #????????????????????? | | ???????????????????# """ @ %;????????????????????? | | ???????????????????# """ %s#????????????????????? | | ???????????????????# s%;????????????????????? | | ???????????????????#### #;;;;????????????????????? | | ??????????????????????#$?????????????????????????? | | ??????????????????????#??????????????????????????? | | ?????????????????????????????????????????????????? | | ?????????????????????????????????????????????????? | | ?????????????????????????????????????????????????? | | ?????????????????????????????????????????????????? | | ?????????????????????????????????????????????????? | | ?????????????????????????????????????????????????? | | ?????????????????????????????????????????????????? | | ?????????????????????????????????????????????????? | | ?????????????????????????????????????????????????? | | ?????????????????????????????????????????????????? | | ?????????????????????????????????????????????????? | | ?????????????????????????????????????????????????? | | ?????????????????????????????????????????????????? | | ?????????????????????????????????????????????????? | | ?????????????????????????????????????????????????? | | ?????????????????????????????????????????????????? | | ?????????????????????????????????????????????????? | | | | | +----------------------------------------------------+ Best States ------------- Heat Dissipation 38 Energy Generation 10 Energy Capacity 250 Matter Stores 400 Matter Capacity 400 Sight Range 16 Robot Scan Range 14 Terrain Scan Range 16 Terrain Scan Density 10 Evasion (%) 55 Item Schematics ----------------- None Robot Schematics ------------------ None Fabricated ------------ Nothing Alien Tech Used ----------------- None Achievements -------------- None Challenges ------------ None Game ------ Seed ServoPortableProtection Manual? 0 Play Time 00:21:22 Cumulative 6.0 hours Start 2024.05.02 @ 00:22:41 End 2024.05.02 @ 00:45:25 Sessions 1 Manual Loads 0 Difficulty Rogue Special Mode None Game No. 12 Rogue 12 Adventurer 0 Explorer 0 Win Type - Total 0 Types 0/0/0/0/0/0/0/0/0 Lore% 3 Gallery% 11 Achievement% 9 Wizard Run 0 Options --------- Layout 1 ASCII 0 Keyboard 0 Movement Mouse Keybinds 0 Fullscreen 1 Font 32/SmallcapsGlow Map View 50x35 Zoom Use 0% Tactical HUD 1 Map Filters NONE Filters NONE Steam 1 RUN: f01dfb15-56a5-4e91-a928-12eaca85f5d6